fUST/lending_fUST_20250516
["ID","MTS","AMOUNT","RATE_DAILY","PERIOD"]
[361196983,1747333851311,-151.0,0.00014109,2]
[361196984,1747333851321,-151.0,0.00014109,2]
[361196985,1747333851330,-151.0,0.00014109,2]
[361196986,1747333851340,-151.0,0.00014109,2]
[361196987,1747333851349,-151.0,0.00014109,2]
[361196988,1747333851359,-151.0,0.00014109,2]
[361196989,1747333851368,-151.0,0.00014109,2]
[361196990,1747333851378,-450.0,0.00014109,2]
[361196991,1747333851387,-215.257878,0.00014109,2]
[361196992,1747333851397,-450.0,0.00014109,2]
[361196993,1747333851406,-396.5585919,0.00014109,2]
[361196994,1747333851415,-450.0,0.00014109,2]
[361196995,1747333851424,-450.0,0.00014109,2]
[361196996,1747333851434,-200.0,0.00014109,2]
[361196997,1747333851443,-200.0,0.00014109,2]
[361196998,1747333851453,-200.0,0.00014109,2]
[361196999,1747333851462,-450.0,0.00014109,2]
[361197000,1747333851472,-450.0,0.00014109,2]
[361197001,1747333851481,-450.0,0.00014109,2]
[361197002,1747333851491,-450.0,0.00014109,2]
[361197003,1747333851501,-151.0,0.00014109,2]
[361197004,1747333851510,-450.0,0.00014109,2]
[361197005,1747333851520,-450.0,0.00014109,2]
[361197006,1747333851529,-151.0,0.00014109,2]
[361197007,1747333851539,-450.0,0.00014109,2]
[361197008,1747333851548,-250.0,0.00014109,2]
[361197009,1747333851557,-250.0,0.00014109,2]
[361197010,1747333851567,-450.0,0.00014109,2]
[361197011,1747333851576,-450.0,0.00014109,2]
[361197012,1747333851585,-450.0,0.00014109,2]
[361197013,1747333851595,-356.57142246,0.00014109,2]
[361197014,1747333851604,-459.37479878,0.00014109,2]
[361197015,1747333851614,-151.0,0.00014109,2]
[361197016,1747333851623,-254.92196697,0.00014109,2]
[361197017,1747333851633,-450.0,0.00014109,2]
[361197018,1747333851642,-450.0,0.00014109,2]
[361197019,1747333851652,-450.0,0.00014109,2]
[361197020,1747333851662,-250.0,0.00014109,2]
[361197021,1747333851671,-450.0,0.00014109,2]
[361197022,1747333851680,-450.0,0.00014109,2]
[361197023,1747333851690,-450.0,0.00014109,2]
[361197024,1747333851699,-151.0,0.00014109,2]
[361197025,1747333851708,-450.0,0.00014109,2]
[361197026,1747333851717,-450.0,0.00014109,2]
[361197027,1747333851726,-450.0,0.00014109,2]
[361197028,1747333851735,-450.0,0.00014109,2]
[361197029,1747333851744,-450.0,0.00014109,2]
[361197030,1747333851753,-450.0,0.00014109,2]
[361197031,1747333851763,-450.0,0.00014109,2]
[361197032,1747333851773,-450.0,0.00014109,2]
[361197033,1747333851782,-450.0,0.00014109,2]
[361197034,1747333851792,-267.814407,0.00014109,2]
[361197035,1747333851801,-450.0,0.00014109,2]
[361197036,1747333851811,-500.11,0.00014109,2]
[361197037,1747333851820,-450.0,0.00014109,2]
[361197038,1747333851829,-450.0,0.00014109,2]
[361197039,1747333851839,-516.94892829,0.00014109,2]
[361197040,1747333851848,-450.0,0.00014109,2]
[361197041,1747333851858,-450.0,0.00014109,2]
[361197042,1747333851869,-450.0,0.00014109,2]
[361197043,1747333851878,-450.0,0.00014109,2]
[361197044,1747333851888,-450.0,0.00014109,2]
[361197045,1747333851897,-360.62878901,0.00014109,2]
[361197046,1747333851907,-450.0,0.00014109,2]
[361197047,1747333851916,-450.0,0.00014109,2]
[361197048,1747333851926,-250.0,0.00014109,2]
[361197049,1747333851936,-450.0,0.00014109,2]
[361197050,1747333851946,-151.0,0.00014109,2]
[361197051,1747333851955,-151.0,0.00014109,2]
[361197052,1747333851965,-450.0,0.00014109,2]
[361197053,1747333851975,-450.0,0.00014109,2]
[361197054,1747333851988,-450.0,0.00014109,2]
[361197055,1747333851998,-250.0,0.00014109,2]
[361197056,1747333852007,-450.0,0.00014109,2]
[361197057,1747333852017,-450.0,0.00014109,2]
[361197058,1747333852027,-151.0,0.00014109,2]
[361197059,1747333852036,-250.0,0.00014109,2]
[361197060,1747333852045,-450.0,0.00014109,2]
[361197061,1747333852055,-250.0,0.00014109,2]
[361197062,1747333852066,-576.28,0.00014109,2]
[361197063,1747333852076,-250.0,0.00014109,2]
[361197064,1747333852086,-772.22,0.00014109,2]
[361197065,1747333852095,-254.39,0.00014109,2]
[361197066,1747333852105,-151.0,0.00014109,2]
[361197067,1747333852114,-712.99,0.00014109,2]
[361197068,1747333852123,-450.0,0.00014109,2]
[361197069,1747333852144,-450.0,0.00014109,2]
[361197070,1747333852155,-450.0,0.00014109,2]
[361197071,1747333852165,-450.0,0.00014109,2]
[361197072,1747333852175,-450.0,0.00014109,2]
[361197073,1747333852185,-450.0,0.00014109,2]
[361197074,1747333852195,-200.0,0.00014109,2]
[361197075,1747333852204,-450.0,0.00014109,2]
[361197076,1747333852215,-450.0,0.00014109,2]
[361197077,1747333852225,-200.0,0.00014109,2]
[361197078,1747333852234,-450.0,0.00014109,2]
[361197079,1747333852243,-450.0,0.00014109,2]
[361197080,1747333852252,-450.0,0.00014109,2]
[361197081,1747333852261,-450.0,0.00014109,2]
[361197082,1747333852270,-450.0,0.00014109,2]
[361197083,1747333852280,-450.0,0.00014109,2]
[361197084,1747333852289,-450.0,0.00014109,2]
[361197085,1747333852298,-450.0,0.00014109,2]
[361197086,1747333852309,-450.0,0.00014109,2]
[361197087,1747333852318,-450.0,0.00014109,2]
[361197088,1747333852327,-450.0,0.00014109,2]
[361197089,1747333852336,-151.0,0.00014109,2]
[361197090,1747333852346,-450.0,0.00014109,2]
[361197091,1747333852356,-450.0,0.00014109,2]
[361197092,1747333852365,-200.0,0.00014109,2]
[361197093,1747333852374,-450.0,0.00014109,2]
[361197094,1747333852383,-450.0,0.00014109,2]
[361197095,1747333852393,-450.0,0.00014109,2]
[361197096,1747333852402,-450.0,0.00014109,2]
[361197097,1747333852412,-450.0,0.00014109,2]
[361197098,1747333852421,-151.0,0.00014109,2]
[361197099,1747333852431,-190.52,0.00014109,2]
[361197100,1747333852440,-450.0,0.00014109,2]
[361197101,1747333852449,-450.0,0.00014109,2]
[361197102,1747333852458,-253.65,0.00014109,2]
[361197103,1747333852467,-512.14,0.00014109,2]
[361197104,1747333852477,-450.0,0.00014109,2]
[361197105,1747333852486,-450.0,0.00014109,2]
[361197106,1747333852495,-450.0,0.00014109,2]
[361197107,1747333852505,-450.0,0.00014109,2]
[361197108,1747333852516,-450.0,0.00014109,2]
[361197109,1747333852526,-562.54,0.00014109,2]
[361197110,1747333852536,-450.0,0.00014109,2]
[361197111,1747333852546,-450.0,0.00014109,2]
[361197112,1747333852556,-450.0,0.00014109,2]
[361197113,1747333852565,-577.4,0.00014109,2]
[361197114,1747333852575,-450.0,0.00014109,2]
[361197115,1747333852585,-450.0,0.00014109,2]
[361197116,1747333852594,-510.66,0.00014109,2]
[361197117,1747333852604,-558.56,0.00014109,2]
[361197118,1747333852614,-391.4,0.00014109,2]
[361197119,1747333852624,-450.0,0.00014109,2]
[361197120,1747333852633,-521.02,0.00014109,2]
[361197121,1747333852643,-450.0,0.00014109,2]
[361197122,1747333852652,-151.0,0.00014109,2]
[361197123,1747333852662,-283.85,0.00014109,2]
[361197124,1747333852673,-314.8,0.00014109,2]
[361197125,1747333852683,-450.0,0.00014109,2]
[361197126,1747333852693,-519.940163,0.00014109,2]
[361197127,1747333852703,-519.940163,0.00014109,2]
[361197128,1747333852713,-450.0,0.00014109,2]
[361197129,1747333852837,-1353.13167,0.00014109,2]
[361197130,1747333852848,-398.88,0.00014109,2]
[361197131,1747333852858,-450.0,0.00014109,2]
[361197132,1747333852868,-1353.13167,0.00014109,2]
[361197133,1747333852878,-450.0,0.00014109,2]
[361197134,1747333852888,-151.0,0.00014109,2]
[361197135,1747333852898,-450.0,0.00014109,2]
[361197136,1747333852907,-1316.69,0.00014109,2]
[361197137,1747333852917,-152.38,0.00014109,2]
[361197138,1747333852927,-450.0,0.00014109,2]
[361197139,1747333852935,-450.0,0.00014109,2]
[361197140,1747333852946,-450.0,0.00014109,2]
[361197141,1747333852955,-450.0,0.00014109,2]
[361197142,1747333852965,-450.0,0.00014109,2]
[361197143,1747333852975,-156.809834,0.00014109,2]
[361197144,1747333852989,-156.809834,0.00014109,2]
[361197145,1747333852998,-450.0,0.00014109,2]
[361197146,1747333853007,-156.809834,0.00014109,2]
[361197147,1747333853018,-156.809824,0.00014109,2]
[361197148,1747333853029,-450.0,0.00014109,2]
[361197149,1747333853038,-450.0,0.00014109,2]
[361197150,1747333853047,-450.0,0.00014109,2]
[361197151,1747333853058,-450.0,0.00014109,2]
[361197152,1747333853067,-450.0,0.00014109,2]
[361197153,1747333853076,-450.0,0.00014109,2]
[361197154,1747333853086,-450.0,0.00014109,2]
[361197155,1747333853095,-226.71,0.00014109,2]
[361197156,1747333853104,-224.43663539,0.00014109,2]
[361197157,1747333853113,-2184.37,0.00014109,2]
[361197158,1747333853123,-450.0,0.00014109,2]
[361197159,1747333853132,-450.0,0.00014109,2]
[361197160,1747333853141,-466.56,0.00014109,2]
[361197161,1747333853154,-450.0,0.00014109,2]
[361197162,1747333853164,-450.0,0.00014109,2]
[361197163,1747333853174,-516.89,0.00014109,2]
[361197164,1747333853184,-450.0,0.00014109,2]
[361197165,1747333853193,-450.0,0.00014109,2]
[361197166,1747333853204,-450.0,0.00014109,2]
[361197167,1747333853214,-256.8,0.00014109,2]
[361197168,1747333853224,-450.0,0.00014109,2]
[361197169,1747333853234,-213.099037,0.00014109,2]
[361197170,1747333853244,-213.099037,0.00014109,2]
[361197171,1747333853254,-450.0,0.00014109,2]
[361197172,1747333853264,-450.0,0.00014109,2]
[361197173,1747333853274,-213.099037,0.00014109,2]
[361197174,1747333853284,-213.099032,0.00014109,2]
[361197175,1747333853294,-450.0,0.00014109,2]
[361197176,1747333853304,-450.0,0.00014109,2]
[361197177,1747333853313,-450.0,0.00014109,2]
[361197178,1747333853323,-450.0,0.00014109,2]
[361197179,1747333853333,-450.0,0.00014109,2]
[361197180,1747333853343,-151.0,0.00014109,2]
[361197181,1747333853353,-212.612594,0.00014109,2]
[361197182,1747333853363,-151.0,0.00014109,2]
[361197183,1747333853373,-151.0,0.00014109,2]
[361197184,1747333853383,-450.0,0.00014109,2]
[361197185,1747333853392,-151.883857,0.00014109,2]
[361197186,1747333853402,-151.883857,0.00014109,2]
[361197187,1747333853412,-151.883857,0.00014109,2]
[361197188,1747333853422,-151.883857,0.00014109,2]
[361197189,1747333853432,-450.0,0.00014109,2]
[361197190,1747333853442,-450.0,0.00014109,2]
[361197191,1747333853451,-450.0,0.00014109,2]
[361197192,1747333853461,-450.0,0.00014109,2]
[361197193,1747333853470,-450.0,0.00014109,2]
[361197194,1747333853480,-172.0,0.00014109,2]
[361197195,1747333853490,-450.0,0.00014109,2]
[361197196,1747333853499,-450.0,0.00014109,2]
[361197197,1747333853508,-1296.06,0.00014109,2]
[361197198,1747333853518,-450.0,0.00014109,2]
[361197199,1747333853527,-243.74,0.00014109,2]
[361197200,1747333853536,-450.0,0.00014109,2]
[361197201,1747333853545,-569.82,0.00014109,2]
[361197202,1747333853555,-450.0,0.00014109,2]
[361197203,1747333853564,-450.0,0.00014109,2]
[361197204,1747333853574,-450.0,0.00014109,2]
[361197205,1747333853584,-233.87,0.00014109,2]
[361197206,1747333853593,-402.9,0.00014109,2]
[361197207,1747333853602,-450.0,0.00014109,2]
[361197208,1747333853611,-450.0,0.00014109,2]
[361197209,1747333853621,-450.0,0.00014109,2]
[361197210,1747333853630,-450.0,0.00014109,2]
[361197211,1747333853640,-290.361008,0.00014109,2]
[361197212,1747333853649,-378.03,0.00014109,2]
[361197213,1747333853658,-2073.17,0.00014109,2]
[361197214,1747333853668,-290.3610129,0.00014109,2]
[361197215,1747333853677,-436.72,0.00014109,2]
[361197216,1747333853686,-450.0,0.00014109,2]
[361197217,1747333853695,-450.0,0.00014109,2]
[361197218,1747333853705,-497.64,0.00014109,2]
[361197219,1747333853714,-450.0,0.00014109,2]
[361197220,1747333853723,-980.49,0.00014109,2]
[361197221,1747333853732,-1375.65,0.00014109,2]
[361197222,1747333853741,-219.12,0.00014109,2]
[361197223,1747333853751,-151.0,0.00014155,2]
[361197224,1747333853761,-151.0,0.00014155,2]
[361197225,1747333853771,-157.9828156,0.00014192,2]
[361197226,1747333853780,-351.4340298,0.00014192,2]
[361197227,1747333853790,-1138.3332688,0.00014192,2]
[361197228,1747333853799,-154.9754932,0.000142,2]
[361197229,1747333853809,-151.0,0.000142,2]
[361197230,1747333853818,-151.0,0.00014216,2]
[361197231,1747333853828,-246.508285,0.00014216,2]
[361197232,1747333853838,-151.0,0.00014216,2]
[361197233,1747333853847,-500.0,0.00014221,2]
[361197234,1747333853857,-500.0,0.00014221,2]
[361197235,1747333853867,-500.0,0.00014221,2]
[361197236,1747333853876,-500.0,0.00014221,2]
[361197237,1747333853886,-505.30963114,0.00014221,2]
[361197238,1747333853896,-500.0,0.00014221,2]
[361197239,1747333853905,-1000.0,0.00014221,2]
[361197240,1747333853914,-500.0,0.00014221,2]
[361197241,1747333853924,-495.30513333,0.00014229,2]
[361197242,1747333853933,-500.0,0.00014229,2]
[361197243,1747333853942,-456.58851774,0.00014229,2]
[361197244,1747333853950,-500.0,0.00014229,2]
[361197245,1747333853959,-500.0,0.00014229,2]
[361197246,1747333853969,-500.0,0.00014229,2]
[361197247,1747333853980,-500.16778031,0.00014229,2]
[361197248,1747333853990,-500.0,0.00014229,2]
[361197249,1747333853999,-410.06298432,0.00014229,2]
[361197250,1747333854009,-500.0,0.00014229,2]
[361197251,1747333854019,-500.0,0.00014229,2]
[361197252,1747333854029,-500.58163847,0.00014229,2]
[361197253,1747333854038,-235.563923,0.00014246,2]
[361197254,1747333854050,-300.0,0.00014246,2]
[361197255,1747333854061,-450.0,0.00014246,2]
[361197256,1747333854070,-154.23,0.00014246,2]
[361197257,1747333854080,-150.0,0.00014246,2]
[361197258,1747333854089,-150.0,0.00014246,2]
[361197259,1747333854100,-223.01,0.00014246,2]
[361197260,1747333854109,-450.0,0.00014246,2]
[361197261,1747333854118,-450.0,0.00014246,2]
[361197262,1747333854127,-450.0,0.00014246,2]
[361197263,1747333854227,-311.51,0.00014246,2]
[361197264,1747333854236,-200.0,0.00014246,2]
[361197265,1747333854245,-450.0,0.00014246,2]
[361197266,1747333854254,-493.66,0.00014246,2]
[361197267,1747333854263,-388.15917165,0.00014246,2]
[361197268,1747333854272,-450.0,0.00014246,2]
[361197269,1747333854281,-528.6,0.00014246,2]
[361197270,1747333854290,-150.0,0.00014246,2]
[361197271,1747333854299,-200.0,0.00014246,2]
[361197272,1747333854307,-200.0,0.00014246,2]
[361197273,1747333854313,-450.0,0.00014246,2]
[361197274,1747333854320,-151.0,0.00014246,2]
[361197275,1747333854327,-450.0,0.00014246,2]
[361197276,1747333854334,-450.0,0.00014246,2]
[361197277,1747333854340,-450.0,0.00014246,2]
[361197278,1747333854346,-200.0,0.00014246,2]
[361197279,1747333854353,-200.0,0.00014246,2]
[361197280,1747333854360,-200.0,0.00014246,2]
[361197281,1747333854367,-453.89,0.00014246,2]
[361197282,1747333854374,-450.0,0.00014246,2]
[361197283,1747333854381,-450.0,0.00014246,2]
[361197284,1747333854388,-200.0,0.00014246,2]
[361197285,1747333854394,-236.79,0.00014246,2]
[361197286,1747333854401,-450.0,0.00014246,2]
[361197287,1747333854407,-200.0,0.00014246,2]
[361197288,1747333854415,-450.0,0.00014246,2]
[361197289,1747333854422,-200.0,0.00014246,2]
[361197290,1747333854429,-200.0,0.00014246,2]
[361197291,1747333854436,-200.0,0.00014246,2]
[361197292,1747333854443,-200.0,0.00014246,2]
[361197293,1747333854450,-200.0,0.00014246,2]
[361197294,1747333854459,-200.0,0.00014246,2]
[361197295,1747333854467,-151.0,0.00014246,2]
[361197296,1747333854473,-274.81,0.00014246,2]
[361197297,1747333854481,-450.0,0.00014246,2]
[361197298,1747333854489,-450.0,0.00014246,2]
[361197299,1747333854497,-450.0,0.00014246,2]
[361197300,1747333854504,-200.0,0.00014246,2]
[361197301,1747333854512,-151.0,0.00014246,2]
[361197302,1747333854520,-450.0,0.00014246,2]
[361197303,1747333854529,-576.28,0.00014246,2]
[361197304,1747333854536,-772.22,0.00014246,2]
[361197305,1747333854545,-151.0,0.00014246,2]
[361197306,1747333854552,-712.99,0.00014246,2]
[361197307,1747333854561,-200.0,0.00014246,2]
[361197308,1747333854569,-450.0,0.00014246,2]
[361197309,1747333854576,-450.0,0.00014246,2]
[361197310,1747333854584,-475.58,0.00014246,2]
[361197311,1747333854593,-450.0,0.00014246,2]
[361197312,1747333854600,-450.0,0.00014246,2]
[361197313,1747333854608,-416.92,0.00014246,2]
[361197314,1747333854615,-450.0,0.00014246,2]
[361197315,1747333854621,-450.0,0.00014246,2]
[361197316,1747333854628,-450.0,0.00014246,2]
[361197317,1747333854636,-247.12,0.00014246,2]
[361197318,1747333854643,-450.0,0.00014246,2]
[361197319,1747333854651,-450.0,0.00014246,2]
[361197320,1747333854658,-450.0,0.00014246,2]
[361197321,1747333854665,-571.77,0.00014246,2]
[361197322,1747333854673,-450.0,0.00014246,2]
[361197323,1747333854679,-450.0,0.00014246,2]
[361197324,1747333854687,-450.0,0.00014246,2]
[361197325,1747333854695,-151.0,0.00014246,2]
[361197326,1747333854703,-450.0,0.00014246,2]
[361197327,1747333854713,-553.82,0.00014246,2]
[361197328,1747333854723,-339.34,0.00014246,2]
[361197329,1747333854732,-321.1,0.00014246,2]
[361197330,1747333854742,-450.0,0.00014246,2]
[361197331,1747333854751,-450.0,0.00014246,2]
[361197332,1747333854761,-450.0,0.00014246,2]
[361197333,1747333854771,-200.780902,0.00014246,2]
[361197334,1747333854780,-450.0,0.00014246,2]
[361197335,1747333854789,-450.0,0.00014246,2]
[361197336,1747333854799,-450.0,0.00014246,2]
[361197337,1747333854808,-536.78,0.00014246,2]
[361197338,1747333854818,-450.0,0.00014246,2]
[361197339,1747333854827,-183.58,0.00014246,2]
[361197340,1747333854837,-450.0,0.00014246,2]
[361197341,1747333854846,-450.0,0.00014246,2]
[361197342,1747333854856,-289.39,0.00014246,2]
[361197343,1747333854865,-450.0,0.00014246,2]
[361197344,1747333854875,-450.0,0.00014246,2]
[361197345,1747333854884,-450.0,0.00014246,2]
[361197346,1747333854894,-510.66,0.00014246,2]
[361197347,1747333854903,-243.17,0.00014246,2]
[361197348,1747333854913,-450.0,0.00014246,2]
[361197349,1747333854922,-450.0,0.00014246,2]
[361197350,1747333854932,-519.940163,0.00014246,2]
[361197351,1747333854941,-519.940163,0.00014246,2]
[361197352,1747333854951,-596.28,0.00014246,2]
[361197353,1747333854960,-450.0,0.00014246,2]
[361197354,1747333854970,-450.0,0.00014246,2]
[361197355,1747333854981,-450.0,0.00014246,2]
[361197356,1747333854991,-1316.69,0.00014246,2]
[361197357,1747333855000,-450.0,0.00014246,2]
[361197358,1747333855010,-450.0,0.00014246,2]
[361197359,1747333855021,-450.0,0.00014246,2]
[361197360,1747333855030,-450.0,0.00014246,2]
[361197361,1747333855038,-450.0,0.00014246,2]
[361197362,1747333855048,-450.0,0.00014246,2]
[361197363,1747333855057,-406.89,0.00014246,2]
[361197364,1747333855066,-450.0,0.00014246,2]
[361197365,1747333855075,-450.0,0.00014246,2]
[361197366,1747333855084,-596.02,0.00014246,2]
[361197367,1747333855093,-450.0,0.00014246,2]
[361197368,1747333855102,-450.0,0.00014246,2]
[361197369,1747333855111,-450.0,0.00014246,2]
[361197370,1747333855119,-2184.37,0.00014246,2]
[361197371,1747333855128,-271.18,0.00014246,2]
[361197372,1747333855136,-450.0,0.00014246,2]
[361197373,1747333855146,-450.0,0.00014246,2]
[361197374,1747333855154,-450.0,0.00014246,2]
[361197375,1747333855163,-170.44150312,0.00014246,2]
[361197376,1747333855171,-516.89,0.00014246,2]
[361197377,1747333855179,-450.0,0.00014246,2]
[361197378,1747333855187,-186.82,0.00014246,2]
[361197379,1747333855196,-450.0,0.00014246,2]
[361197380,1747333855204,-450.0,0.00014246,2]
[361197381,1747333855214,-450.0,0.00014246,2]
[361197382,1747333855223,-189.16,0.00014246,2]
[361197383,1747333855231,-450.0,0.00014246,2]
[361197384,1747333855241,-450.0,0.00014246,2]
[361197385,1747333855250,-450.0,0.00014246,2]
[361197386,1747333855259,-450.0,0.00014246,2]
[361197387,1747333855340,-151.0,0.00014246,2]
[361197388,1747333855349,-181.79,0.00014246,2]
[361197389,1747333855358,-151.883857,0.00014246,2]
[361197390,1747333855367,-151.883855,0.00014246,2]
[361197391,1747333855376,-450.0,0.00014246,2]
[361197392,1747333855385,-450.0,0.00014246,2]
[361197393,1747333855394,-450.0,0.00014246,2]
[361197394,1747333855403,-416.45,0.00014246,2]
[361197395,1747333855413,-450.0,0.00014246,2]
[361197396,1747333855422,-450.0,0.00014246,2]
[361197397,1747333855431,-450.0,0.00014246,2]
[361197398,1747333855440,-1296.06,0.00014246,2]
[361197399,1747333855449,-450.0,0.00014246,2]
[361197400,1747333855458,-450.0,0.00014246,2]
[361197401,1747333855467,-450.0,0.00014246,2]
[361197402,1747333855476,-450.0,0.00014246,2]
[361197403,1747333855485,-450.0,0.00014246,2]
[361197404,1747333855494,-450.0,0.00014246,2]
[361197405,1747333855503,-450.0,0.00014246,2]
[361197406,1747333855513,-450.0,0.00014246,2]
[361197407,1747333855523,-450.0,0.00014246,2]
[361197408,1747333855533,-2073.17,0.00014246,2]
[361197409,1747333855543,-450.0,0.00014246,2]
[361197410,1747333855553,-354.98,0.00014246,2]
[361197411,1747333855563,-497.64,0.00014246,2]
[361197412,1747333855572,-450.0,0.00014246,2]
[361197413,1747333855582,-980.49,0.00014246,2]
[361197414,1747333855591,-1375.65,0.00014246,2]
[361197415,1747333855601,-151.0,0.000143,2]
[361197416,1747333855611,-151.0,0.00014383,2]
[361197417,1747333855621,-151.0,0.00014383,2]
[361197418,1747333855630,-155.995163,0.00014383,2]
[361197419,1747333855639,-155.995163,0.00014383,2]
[361197420,1747333855649,-151.0,0.00014383,2]
[361197421,1747333855658,-450.0,0.00014383,2]
[361197422,1747333855668,-214.02,0.00014383,2]
[361197423,1747333855677,-450.0,0.00014383,2]
[361197424,1747333855687,-151.0,0.00014383,2]
[361197425,1747333855696,-450.0,0.00014383,2]
[361197426,1747333855706,-450.0,0.00014383,2]
[361197427,1747333855716,-151.0,0.00014383,2]
[361197428,1747333855726,-450.0,0.00014383,2]
[361197429,1747333855736,-450.0,0.00014383,2]
[361197430,1747333855745,-450.0,0.00014383,2]
[361197431,1747333855755,-450.0,0.00014383,2]
[361197432,1747333855764,-450.0,0.00014383,2]
[361197433,1747333855774,-450.0,0.00014383,2]
[361197434,1747333855783,-509.8,0.00014383,2]
[361197435,1747333855792,-218.32,0.00014383,2]
[361197436,1747333855802,-450.0,0.00014383,2]
[361197437,1747333855810,-720.972963,0.00014383,2]
[361197438,1747333855827,-151.0,0.00014383,2]
[361197439,1747333855840,-323.92,0.00014383,2]
[361197440,1747333855850,-450.0,0.00014383,2]
[361197441,1747333855860,-450.0,0.00014383,2]
[361197442,1747333855869,-450.0,0.00014383,2]
[361197443,1747333855879,-151.0,0.00014383,2]
[361197444,1747333855904,-576.28,0.00014383,2]
[361197445,1747333855926,-772.22,0.00014383,2]
[361197446,1747333855948,-712.99,0.00014383,2]
[361197447,1747333855969,-450.0,0.00014383,2]
[361197448,1747333855991,-450.0,0.00014383,2]
[361197449,1747333856009,-450.0,0.00014383,2]
[361197450,1747333856032,-264.08,0.00014383,2]
[361197451,1747333856049,-178.1,0.00014383,2]
[361197452,1747333856066,-450.0,0.00014383,2]
[361197453,1747333856091,-323.8,0.00014383,2]
[361197454,1747333856117,-450.0,0.00014383,2]
[361197455,1747333856138,-450.0,0.00014383,2]
[361197456,1747333856158,-450.0,0.00014383,2]
[361197457,1747333856180,-450.0,0.00014383,2]
[361197458,1747333856198,-450.0,0.00014383,2]
[361197459,1747333856223,-450.0,0.00014383,2]
[361197460,1747333856242,-470.93,0.00014383,2]
[361197461,1747333856265,-356.14,0.00014383,2]
[361197462,1747333856286,-279.33,0.00014383,2]
[361197463,1747333856303,-450.0,0.00014383,2]
[361197464,1747333856318,-450.0,0.00014383,2]
[361197465,1747333856334,-450.0,0.00014383,2]
[361197466,1747333856349,-450.0,0.00014383,2]
[361197467,1747333856364,-381.2,0.00014383,2]
[361197468,1747333856379,-450.0,0.00014383,2]
[361197469,1747333856393,-450.0,0.00014383,2]
[361197470,1747333856407,-450.0,0.00014383,2]
[361197471,1747333856422,-450.0,0.00014383,2]
[361197472,1747333856436,-450.0,0.00014383,2]
[361197473,1747333856451,-510.66,0.00014383,2]
[361197474,1747333856465,-303.04,0.00014383,2]
[361197475,1747333856480,-581.06,0.00014383,2]
[361197476,1747333856494,-1353.13167,0.00014383,2]
[361197477,1747333856507,-450.0,0.00014383,2]
[361197478,1747333856523,-1353.13167,0.00014383,2]
[361197479,1747333856538,-450.0,0.00014383,2]
[361197480,1747333856551,-450.0,0.00014383,2]
[361197481,1747333856566,-1316.69,0.00014383,2]
[361197482,1747333856580,-232.2,0.00014383,2]